Workbook

Sheet START
B1: ABOUT THIS TEMPLATE
B2: Track initial investment in website, its benefits, and costs using this website budgeting tool.
B3: Enter details in tables to auto-calculate totals and evaluation metrics.
B4: Note:
B5: Additional instructions have been provided in column A of BUDGET TOOL worksheet. This text has been intentionally hidden. To remove text, select column A, then select DELETE. To unhide text, select column A, then change the font colour.
B6: To learn more about tables in worksheet, press SHIFT and then F10 within a table, select the TABLE option, and then select ALTERNATIVE TEXT.

Sheet BUDGET TOOL
B2: Quadrex Hardware
B3: WEBSITE BUDGETING TOOL
B4: 2022-12-01
B6: Company data | C6: Rate
B7: Required rate of return | C7: 10%
B8: Tax rate | C8: 30%
B10: Initial investment in website | C10: Year
B11: Hardware (e.g., servers) | C11: £25,000.00
B12: Software (e.g., e-commerce catalogue software) | C12: £15,000.00
B13: Development (e.g., third-party site design and development) | C13: £150,000.00
B14: Total initial investments | C14: =SUBTOTAL(109,InitialInvest[Year]) -> £190,000.00
B16: Benefits from website | C16: Year 1 | D16: Year 2 | E16: Year 3
B17: Direct sales | C17: £15,000.00 | D17: £50,000.00 | E17: £75,000.00
B18: Incremental sales resulting from enhanced promotional/salesperson effectiveness | C18: £25,000.00 | D18: £25,000.00 | E18: £25,000.00
B19: Incremental sales resulting from increased partner participation | C19: £25,000.00 | D19: £25,000.00 | E19: £25,000.00
B20: Reduced travel costs | C20: £25,000.00 | D20: £25,000.00 | E20: £25,000.00
B21: Reduced customer service costs | C21: £50,000.00 | D21: £50,000.00 | E21: £50,000.00
B22: Total benefits | C22: =SUBTOTAL(109,Benefits[Year 1]) -> £140,000.00 | D22: =SUBTOTAL(109,Benefits[Year 2]) -> £175,000.00 | E22: =SUBTOTAL(109,Benefits[Year 3]) -> £200,000.00
B24: Costs (excluding initial capital investments) | C24: YEAR 1 | D24: YEAR 2 | E24: YEAR 3
B25: Cost of sales | C25: £7,500.00 | D25: £25,000.00 | E25: £37,500.00
B26: Maintenance | C26: £15,000.00 | D26: £15,000.00 | E26: £15,000.00
B27: Project management, customer support | C27: £35,000.00 | D27: £35,000.00 | E27: £35,000.00
B28: Online advertising, search-engine registration | C28: £10,000.00 | D28: £10,000.00 | E28: £10,000.00
B29: Depreciation on capital expenditures (calculation uses three-year period) | C29: =InitialInvest[[#Totals],[Year]]/3 -> £63,333.33 | D29: =InitialInvest[[#Totals],[Year]]/3 -> £63,333.33 | E29: =InitialInvest[[#Totals],[Year]]/3 -> £63,333.33
B30: Total costs | C30: =SUBTOTAL(109,Costs[YEAR 1]) -> £130,833.33 | D30: =SUBTOTAL(109,Costs[YEAR 2]) -> £148,333.33 | E30: =SUBTOTAL(109,Costs[YEAR 3]) -> £160,833.33
B32: Totals | D32: Year 1 | E32: Year 2 | F32: Year 3
B33: Net benefits (costs) | D33: =Benefits[[#Totals],[Year 1]]-Costs[[#Totals],[YEAR 1]] -> £9,166.67 | E33: =Benefits[[#Totals],[Year 2]]-Costs[[#Totals],[YEAR 2]] -> £26,666.67 | F33: =Benefits[[#Totals],[Year 3]]-Costs[[#Totals],[YEAR 3]] -> £39,166.67
B34: Tax | D34: =D33*TaxRate -> £2,750.00 | E34: =E33*TaxRate -> £8,000.00 | F34: =F33*TaxRate -> £11,750.00
B35: Value after tax | D35: =D33-D34 -> £6,416.67 | E35: £18,666.67 | F35: £27,416.67
B36: Depreciation added back | D36: =C29 -> £63,333.33 | E36: =D29 -> £63,333.33 | F36: =E29 -> £63,333.33
B37: Cash flow | C37: =-InitialInvest[[#Totals],[Year]] -> -£190,000.00 | D37: =D35+D36 -> £69,750.00 | E37: =E35+E36 -> £82,000.00 | F37: =F35+F36 -> £90,750.00
B38: Cumulative cash flow | C38: =C37 -> -£190,000.00 | D38: =C38+D37 -> -£120,250.00 | E38: -£38,250.00 | F38: £52,500.00
B40: Evaluation metrics | C40: Values
B41: Net present value (NPV) | C41: =C37+(NPV(ROR,D37:F37)) -> £9,359.50
B42: Internal rate of return (IRR) | C42: =IRR(C37:F37) -> 12.66%
B43: Payback period (in years) | C43: =IF(F38<=0,"Exceeds three years",IF(E38<=0,(F37-F38)/F37+2,IF(D38<=0,(E37-E38)/E37+1,IF(C38<=0,(D37-D38)/D37,"NA")))) -> 2.42
